Department Family,Entity,Date,Expense Type,Expense Area,Supplier,Transaction Number,Amount,,
DOH,London Ambulance Service NHS Trust,20/09/2019,Contract Labour,Vehicle Resouce Centre,Churchill Contract Services Ltd,478943,117948.96,,
DOH,London Ambulance Service NHS Trust,03/09/2019,Professional Fees,Property Management,Avison Young (Pma321),479450,38881.04,,
DOH,London Ambulance Service NHS Trust,01/09/2019,Make Ready Support,Make Ready Service,Interserve Hospital Services,484462,264526.73,,
DOH,London Ambulance Service NHS Trust,01/09/2019,Acd Maintenance,Networks,Daisy Communications Ltd,484963,44999.1,,
DOH,London Ambulance Service NHS Trust,20/09/2019,Contract Labour,Vehicle Resouce Centre,Churchill Contract Services Ltd,485013,117948.96,,
DOH,London Ambulance Service NHS Trust,01/09/2019,Medical & Surgical Items,Primary Response Bags,Teleflex Medical,485148,28374,,
DOH,London Ambulance Service NHS Trust,18/09/2019,Lease Costs For Ops Vehicles,Non Emergency Transport,Tp Leasing Ltd,485256,34424.02,,
DOH,London Ambulance Service NHS Trust,04/09/2019,Taxis & Mini Cabs,Sub-Contracted Transport,Addison Lee,485406,52852.46,,
DOH,London Ambulance Service NHS Trust,13/09/2019,Occupational Health Fees,P&C Management,People Asset Management Ltd,485619,77269.4,,
DOH,London Ambulance Service NHS Trust,04/09/2019,Cleaning Of Premises,Property Management,Lakethorne Ltd,485703,101423.62,,
DOH,London Ambulance Service NHS Trust,01/09/2019,Make Ready Support,Make Ready Service,Interserve Hospital Services,485960,362958,,
DOH,London Ambulance Service NHS Trust,01/09/2019,Make Ready Support,Make Ready Service,Interserve Hospital Services,485961,362958,,
DOH,London Ambulance Service NHS Trust,11/09/2019,Agency Call Handlers,111 Nel Operations,Hays Specialist Recruitment Ltd,486227,25423.34,,
DOH,London Ambulance Service NHS Trust,11/09/2019,Agency Call Handlers,111 Sel Operations,Hays Specialist Recruitment Ltd,486227,166956.07,,
DOH,London Ambulance Service NHS Trust,11/09/2019,Agency Gp,111 Nel Operations,Hays Specialist Recruitment Ltd,486227,53247.84,,
DOH,London Ambulance Service NHS Trust,11/09/2019,Agency Gp,111 Sel Operations,Hays Specialist Recruitment Ltd,486227,85828.8,,
DOH,London Ambulance Service NHS Trust,11/09/2019,Agency Nurses,111 Nel Operations,Hays Specialist Recruitment Ltd,486227,39489.36,,
DOH,London Ambulance Service NHS Trust,11/09/2019,Agency Nurses,111 Sel Operations,Hays Specialist Recruitment Ltd,486227,93211.55,,
DOH,London Ambulance Service NHS Trust,11/09/2019,Agency Adv Nurse Practitioner,111 Sel Operations,Hays Specialist Recruitment Ltd,486227,12304.86,,
DOH,London Ambulance Service NHS Trust,11/09/2019,Agency Adv Nurse Practitioner,111 Nel Operations,Hays Specialist Recruitment Ltd,486227,11502.34,,
DOH,London Ambulance Service NHS Trust,13/09/2019,Occupational Health Fees,P&C Management,People Asset Management Ltd,486299,44167.09,,
DOH,London Ambulance Service NHS Trust,06/09/2019,Professional Fees,Im&T Tech Design Authority,Tm Management Solutions Ltd,486712,37500,,
DOH,London Ambulance Service NHS Trust,06/09/2019,Professional Fees,Im&T Tech Design Authority,Tm Management Solutions Ltd,486713,37500,,
DOH,London Ambulance Service NHS Trust,11/09/2019,Professional Fees,Im&T Tech Design Authority,Tm Management Solutions Ltd,486714,37500,,
DOH,London Ambulance Service NHS Trust,06/09/2019,Data Network Rental,Networks,Bt Global Services,486751,33663.04,,
DOH,London Ambulance Service NHS Trust,06/09/2019,Buildings,Capital,Smith & Company Building & Company,487024,48649.27,,
DOH,London Ambulance Service NHS Trust,11/09/2019,Vehicle Recovery,Fleet Support Services,The Mansfield Group,487085,54562.86,,
DOH,London Ambulance Service NHS Trust,18/09/2019,Lease Costs For Ops Vehicles,Non Emergency Transport,Tp Leasing Ltd,487107,34424.02,,
DOH,London Ambulance Service NHS Trust,11/09/2019,Phone & Fax Line Rental,Networks,Bt Teleworker,487278,72844.22,,
DOH,London Ambulance Service NHS Trust,01/09/2019,Rent,Brent Estates,Workman Llp,487281,32293.8,,
DOH,London Ambulance Service NHS Trust,01/09/2019,Service Charges,Brent Estates,Workman Llp,487281,1820.36,,
DOH,London Ambulance Service NHS Trust,01/09/2019,Buildings,Capital,Bhc Healthcare Furniture Ltd,487562,29884.57,,
DOH,London Ambulance Service NHS Trust,01/09/2019,Buildings,Capital,Bhc Healthcare Furniture Ltd,487563,44247.14,,
DOH,London Ambulance Service NHS Trust,11/09/2019,Professional Fees,Property Management,Tm Management Solutions Ltd,487571,63180,,
DOH,London Ambulance Service NHS Trust,11/09/2019,Professional Fees,Property Management,Invida Limited,487681,40432.8,,
DOH,London Ambulance Service NHS Trust,13/09/2019,Agency Professional Staff,P&C Management,Mlc Partners,487933,26597.7,,
DOH,London Ambulance Service NHS Trust,04/09/2019,Data Network Rental,Networks,Daisy Communications Ltd,487937,25714.37,,
DOH,London Ambulance Service NHS Trust,11/09/2019,Rent,Southwark Bridge Road,Zurich Assurance Ltd,488127,32667.72,,
DOH,London Ambulance Service NHS Trust,18/09/2019,Lease Costs For Ops Vehicles,Non Emergency Transport,Tp Leasing Ltd,488183,74144.03,,
DOH,London Ambulance Service NHS Trust,11/09/2019,Private Ambulance Hire,Ops Central - Private Amb,Falck Uk Ambulance Service Ltd,488241,36612.39,,
DOH,London Ambulance Service NHS Trust,11/09/2019,Private Ambulance Hire,Ops Central - Private Amb,Falck Uk Ambulance Service Ltd,488245,47312.23,,
DOH,London Ambulance Service NHS Trust,11/09/2019,Private Ambulance Hire,Ops Central - Private Amb,Falck Uk Ambulance Service Ltd,488246,32049.98,,
DOH,London Ambulance Service NHS Trust,11/09/2019,Private Ambulance Hire,Ops Central - Private Amb,Falck Uk Ambulance Service Ltd,488247,42991.9,,
DOH,London Ambulance Service NHS Trust,11/09/2019,Private Ambulance Hire,Ops Central - Private Amb,Falck Uk Ambulance Service Ltd,488248,39101.27,,
DOH,London Ambulance Service NHS Trust,20/09/2019,Consultancy Fees,Sm - Quality & Assurance Pmo,Discidium Limited,488280,155940,,
DOH,London Ambulance Service NHS Trust,20/09/2019,Cad Tools Maintenance,Cad Support,Northrop Grumman Information Technology,489324,59903.84,,
DOH,London Ambulance Service NHS Trust,06/09/2019,Rent,111 Sel Operations,Avison Young (Pma321),489340,60128.26,,
DOH,London Ambulance Service NHS Trust,06/09/2019,Service Charges,111 Sel Operations,Avison Young (Pma321),489340,24187.2,,
DOH,London Ambulance Service NHS Trust,11/09/2019,Rent,Hazardous Area Response Team,Jones Lang Lasalle (Rent Only),489872,58764,,
DOH,London Ambulance Service NHS Trust,20/09/2019,Tyres,Fleet Support Services,Ats Euromaster Ltd,489942,45426.68,,
DOH,London Ambulance Service NHS Trust,11/09/2019,Course And Conference Fees,Im&T Management,Pluralsight Llc,490184,30740,,
DOH,London Ambulance Service NHS Trust,20/09/2019,Rent,Southwark Bridge Road,Zurich Assurance Ltd,490606,40625.24,,
DOH,London Ambulance Service NHS Trust,18/09/2019,Mobile Phone Rental,Telecommunications,Vodafone Corporate Limited,490712,77771.08,,
DOH,London Ambulance Service NHS Trust,20/09/2019,Mobile Phone Rental,Telecommunications,Vodafone Corporate Limited,490715,79914.5,,
DOH,London Ambulance Service NHS Trust,18/09/2019,Rent,Cody Road Estates,Cbre Ltd,491264,79650,,
DOH,London Ambulance Service NHS Trust,18/09/2019,Service Charges,Cody Road Estates,Cbre Ltd,491264,3189.68,,
DOH,London Ambulance Service NHS Trust,11/09/2019,Course And Conference Fees,Im&T Management,Pluralsight Llc,491358,-30740,,
DOH,London Ambulance Service NHS Trust,11/09/2019,Course And Conference Fees,Im&T Management,Pluralsight Llc,491301,24948.46,,
DOH,London Ambulance Service NHS Trust,18/09/2019,Training Accommodation,International Recruitment 1718,The Independents Hotel Reservations Ltd,491814,45910,,
DOH,London Ambulance Service NHS Trust,02/09/2019,Ensign Insurance Debtor,Control Accounts,QBE International Insurance T/A Ensign,66242,35018.75,,
DOH,London Ambulance Service NHS Trust,30/09/2019,Ensign Insurance Debtor,Control Accounts,QBE International Insurance T/A Ensign,67117,285018.75,,
DOH,London Ambulance Service NHS Trust,02/09/2019,Ensign Insurance Debtor,Control Accounts,QBE International Insurance T/A Ensign,66242,50000,,
DOH,London Ambulance Service NHS Trust,02/09/2019,Ensign Insurance Debtor,Control Accounts,QBE International Insurance T/A Ensign,66242,50000,,
DOH,London Ambulance Service NHS Trust,02/09/2019,Ensign Insurance Debtor,Control Accounts,QBE International Insurance T/A Ensign,66242,50000,,
DOH,London Ambulance Service NHS Trust,02/09/2019,Ensign Insurance Debtor,Control Accounts,QBE International Insurance T/A Ensign,66242,50000,,
DOH,London Ambulance Service NHS Trust,02/09/2019,Ensign Insurance Debtor,Control Accounts,QBE International Insurance T/A Ensign,66242,50000,,
DOH,London Ambulance Service NHS Trust,26/09/2019,Medical Gas,Director Of Ops,British Oxygen,66782,105791.99,,
DOH,London Ambulance Service NHS Trust,30/09/2019,Fuel,Director Of Ops,BP Oil,67002,207156.76,,
DOH,London Ambulance Service NHS Trust,23/09/2019,Child Care Arrangements,Payroll,Computerserve Vouchers,66468,25099.3,,
DOH,London Ambulance Service NHS Trust,16/09/2019,Fuel,Director Of Ops,BP Oil,66398,233465.2,,
DOH,London Ambulance Service NHS Trust,16/09/2019,CNST Contributions,Legal Services,NHSLA,66398,371063.5,,
DOH,London Ambulance Service NHS Trust,16/09/2019,Liability to 3rd Party Scheme,Legal Services,NHSLA,66398,47807.8,,
DOH,London Ambulance Service NHS Trust,17/09/2019,Property Expenses Scheme,Legal Services,NHSLA,66398,1337.7,,
